[Event "Titled Tuesday Blitz April 19 Late 2022"]
[White "Dilmukhametov, Artur"]
[Black "Omariev, Maksim"]
[WhiteFideId "24179922"]
[BlackFideId "4193423"]
[WhiteElo "2244"]
[BlackElo "2507"]
[Result "0-1"]
[Round "04"]
[TimeControl "180+1"]
[Date "2022.04.19"]
[WhiteClock "0:00:41"]
[BlackClock "0:00:16"]

1. e4 {[%clk 0:03:00]}  c5 {[%clk 0:02:59]} 2. Nf3 {[%clk 0:03:00]}  d6 {[%clk 0:03:00]} 3. Bb5+ {[%clk 0:03:00]}  Nd7 {[%clk 0:02:58]} 4. O-O {[%clk 0:02:59]}  a6 {[%clk 0:02:57]} 5. Bxd7+ {[%clk 0:02:57]}  Bxd7 {[%clk 0:02:58]} 6. h3 {[%clk 0:02:58]}  e5 {[%clk 0:02:58]} 7. c3 {[%clk 0:02:58]}  Nf6 {[%clk 0:02:58]} 8. d4 {[%clk 0:02:58]}  Qc7 {[%clk 0:02:56]} 9. dxe5 {[%clk 0:02:57]}  dxe5 {[%clk 0:02:56]} 10. Qe2 {[%clk 0:02:58]}  Bc6 {[%clk 0:02:51]} 11. Nbd2 {[%clk 0:02:42]}  Be7 {[%clk 0:02:49]} 12. Nc4 {[%clk 0:02:32]}  Bxe4 {[%clk 0:02:40]} 13. Nfxe5 {[%clk 0:02:12]}  b5 {[%clk 0:02:36]} 14. Bg5 {[%clk 0:02:13]}  Bb7 {[%clk 0:02:09]} 15. Ng4 {[%clk 0:01:18]}  bxc4 {[%clk 0:01:30]} 16. Nxf6+ {[%clk 0:01:10]}  gxf6 {[%clk 0:01:31]} 17. Bxf6 {[%clk 0:01:09]}  Rg8 {[%clk 0:01:31]} 18. Rfe1 {[%clk 0:00:54]}  O-O-O {[%clk 0:00:42]} 19. Qxe7 {[%clk 0:00:45]}  Rxg2+ {[%clk 0:00:39]} 20. Kf1 {[%clk 0:00:45]}  Rxf2+ {[%clk 0:00:16]} 21. Kxf2 {[%clk 0:00:46]}  Qh2+ {[%clk 0:00:16]} 22. Ke3 {[%clk 0:00:41]}  Qd2# {[%clk 0:00:16]} 0-1


[Site "https://www.chess.com"]

[Event "Titled Tuesday Blitz April 19 Late 2022"]
[White "Djokic, Mihailo"]
[Black "Hambleton, Aman"]
[WhiteFideId "976440"]
[BlackFideId "2606577"]
[WhiteElo "2202"]
[BlackElo "2552"]
[Result "1-0"]
[Round "04"]
[TimeControl "180+1"]
[Date "2022.04.19"]
[WhiteClock "0:00:19"]
[BlackClock "0:00:01"]

1. e4 {[%clk 0:03:00]}  b6 {[%clk 0:02:56]} 2. d4 {[%clk 0:03:00]}  Bb7 {[%clk 0:02:54]} 3. Bd3 {[%clk 0:03:00]}  e6 {[%clk 0:02:55]} 4. Nf3 {[%clk 0:02:59]}  d5 {[%clk 0:02:55]} 5. e5 {[%clk 0:02:59]}  Ba6 {[%clk 0:02:55]} 6. Bxa6 {[%clk 0:02:57]}  Nxa6 {[%clk 0:02:56]} 7. O-O {[%clk 0:02:58]}  Qd7 {[%clk 0:02:56]} 8. Nc3 {[%clk 0:02:54]}  Ne7 {[%clk 0:02:54]} 9. Ne2 {[%clk 0:02:54]}  c5 {[%clk 0:02:46]} 10. c3 {[%clk 0:02:53]}  Nc7 {[%clk 0:02:34]} 11. Be3 {[%clk 0:02:52]}  Nf5 {[%clk 0:02:33]} 12. Qd2 {[%clk 0:02:49]}  Be7 {[%clk 0:02:27]} 13. Rfd1 {[%clk 0:02:47]}  Nxe3 {[%clk 0:02:13]} 14. fxe3 {[%clk 0:02:48]}  O-O {[%clk 0:02:13]} 15. Ng3 {[%clk 0:02:48]}  Rad8 {[%clk 0:01:44]} 16. a4 {[%clk 0:02:45]}  a5 {[%clk 0:01:36]} 17. Kh1 {[%clk 0:02:40]}  f6 {[%clk 0:01:19]} 18. exf6 {[%clk 0:02:23]}  Bxf6 {[%clk 0:01:18]} 19. Re1 {[%clk 0:02:17]}  h6 {[%clk 0:00:19]} 20. Nh5 {[%clk 0:02:16]}  Ne8 {[%clk 0:00:18]} 21. Qf2 {[%clk 0:02:14]}  Nd6 {[%clk 0:00:17]} 22. Nxf6+ {[%clk 0:02:11]}  Rxf6 {[%clk 0:00:16]} 23. Qh4 {[%clk 0:02:08]}  Rdf8 {[%clk 0:00:15]} 24. Ne5 {[%clk 0:01:48]}  Qe8 {[%clk 0:00:15]} 25. Kg1 {[%clk 0:01:43]}  Ne4 {[%clk 0:00:11]} 26. Nd3 {[%clk 0:01:24]}  c4 {[%clk 0:00:08]} 27. Nf4 {[%clk 0:01:22]}  g5 {[%clk 0:00:08]} 28. Qg4 {[%clk 0:01:21]}  Kh7 {[%clk 0:00:05]} 29. Nh3 {[%clk 0:01:10]}  Qf7 {[%clk 0:00:02]} 30. Qe2 {[%clk 0:01:01]}  Rf5 {[%clk 0:00:02]} 31. g3 {[%clk 0:00:57]}  Kg6 {[%clk 0:00:02]} 32. Kg2 {[%clk 0:00:51]}  Qd7 {[%clk 0:00:02]} 33. Rf1 {[%clk 0:00:49]}  Rxf1 {[%clk 0:00:01]} 34. Rxf1 {[%clk 0:00:49]}  Rxf1 {[%clk 0:00:02]} 35. Qxf1 {[%clk 0:00:49]}  Qxa4 {[%clk 0:00:02]} 36. Qe2 {[%clk 0:00:33]}  Qa2 {[%clk 0:00:02]} 37. Qc2 {[%clk 0:00:32]}  Kg7 {[%clk 0:00:01]} 38. Kf3 {[%clk 0:00:20]}  Qa1 {[%clk 0:00:01]} 39. Kg2 {[%clk 0:00:19]} 1-0


[Site "https://www.chess.com"]

[Event "Titled Tuesday Blitz April 19 Late 2022"]
[White "Wagner, Dinara"]
[Black "Szpar, Milosz"]
[WhiteFideId "24157570"]
[BlackFideId "1184989"]
[WhiteElo "2496"]
[BlackElo "2670"]
[Result "0-1"]
[Round "04"]
[TimeControl "180+1"]
[Date "2022.04.19"]
[WhiteClock "0:00:12"]
[BlackClock "0:01:25"]

1. d4 {[%clk 0:02:59]}  Nf6 {[%clk 0:01:49]} 2. c4 {[%clk 0:02:57]}  e5 {[%clk 0:01:47]} 3. dxe5 {[%clk 0:02:56]}  Ng4 {[%clk 0:01:48]} 4. Nf3 {[%clk 0:02:56]}  Nc6 {[%clk 0:01:47]} 5. g3 {[%clk 0:02:54]}  Bb4+ {[%clk 0:01:46]} 6. Bd2 {[%clk 0:02:54]}  Bxd2+ {[%clk 0:01:47]} 7. Qxd2 {[%clk 0:02:54]}  Ngxe5 {[%clk 0:01:46]} 8. Nxe5 {[%clk 0:02:53]}  Nxe5 {[%clk 0:01:47]} 9. Qc3 {[%clk 0:02:52]}  Qe7 {[%clk 0:01:47]} 10. Bg2 {[%clk 0:02:51]}  O-O {[%clk 0:01:47]} 11. O-O {[%clk 0:02:51]}  Re8 {[%clk 0:01:48]} 12. Nd2 {[%clk 0:02:48]}  Nc6 {[%clk 0:01:48]} 13. e3 {[%clk 0:02:47]}  b6 {[%clk 0:01:49]} 14. Rad1 {[%clk 0:02:37]}  Bb7 {[%clk 0:01:50]} 15. Nf3 {[%clk 0:02:36]}  Rad8 {[%clk 0:01:48]} 16. Nd4 {[%clk 0:02:32]}  Nxd4 {[%clk 0:01:48]} 17. Rxd4 {[%clk 0:02:30]}  Bxg2 {[%clk 0:01:49]} 18. Kxg2 {[%clk 0:02:30]}  d6 {[%clk 0:01:46]} 19. Rfd1 {[%clk 0:02:31]}  Qe5 {[%clk 0:01:46]} 20. Qc2 {[%clk 0:02:21]}  Re6 {[%clk 0:01:46]} 21. Rd5 {[%clk 0:02:19]}  Qf6 {[%clk 0:01:46]} 22. Rh5 {[%clk 0:02:07]}  g6 {[%clk 0:01:46]} 23. Rhd5 {[%clk 0:02:08]}  c6 {[%clk 0:01:46]} 24. R5d4 {[%clk 0:02:05]}  Qe5 {[%clk 0:01:46]} 25. b4 {[%clk 0:02:01]}  h5 {[%clk 0:01:47]} 26. h4 {[%clk 0:01:55]}  a5 {[%clk 0:01:46]} 27. a3 {[%clk 0:01:55]}  Rf6 {[%clk 0:01:40]} 28. b5 {[%clk 0:01:49]}  d5 {[%clk 0:01:31]} 29. cxd5 {[%clk 0:01:35]}  cxb5 {[%clk 0:01:30]} 30. Qb3 {[%clk 0:01:28]}  Qd6 {[%clk 0:01:31]} 31. Qxb5 {[%clk 0:01:10]}  Qxa3 {[%clk 0:01:30]} 32. R1d2 {[%clk 0:01:11]}  Qd6 {[%clk 0:01:27]} 33. Qc4 {[%clk 0:01:02]}  Rd7 {[%clk 0:01:26]} 34. Qc8+ {[%clk 0:01:02]}  Kg7 {[%clk 0:01:26]} 35. Qc3 {[%clk 0:01:00]}  Rc7 {[%clk 0:01:27]} 36. Qb2 {[%clk 0:01:00]}  Kh7 {[%clk 0:01:26]} 37. Qb3 {[%clk 0:00:55]}  Rc5 {[%clk 0:01:26]} 38. Rb2 {[%clk 0:00:50]}  b5 {[%clk 0:01:26]} 39. e4 {[%clk 0:00:45]}  b4 {[%clk 0:01:26]} 40. Qe3 {[%clk 0:00:41]}  Qe5 {[%clk 0:01:24]} 41. f4 {[%clk 0:00:35]}  Qc7 {[%clk 0:01:23]} 42. e5 {[%clk 0:00:33]}  Rb6 {[%clk 0:01:24]} 43. d6 {[%clk 0:00:30]}  Qd7 {[%clk 0:01:24]} 44. Rdxb4 {[%clk 0:00:17]}  Qc6+ {[%clk 0:01:25]} 45. Re4 {[%clk 0:00:17]}  Rxb2+ {[%clk 0:01:25]} 46. Kh3 {[%clk 0:00:17]}  Rcc2 {[%clk 0:01:23]} 47. g4 {[%clk 0:00:12]}  Rh2+ {[%clk 0:01:24]} 48. Kg3 {[%clk 0:00:13]}  Rbg2+ {[%clk 0:01:24]} 49. Kf3 {[%clk 0:00:13]}  Rh3+ {[%clk 0:01:24]} 50. Kxg2 {[%clk 0:00:12]}  Rxe3 {[%clk 0:01:25]} 0-1


[Site "https://www.chess.com"]

[Event "Titled Tuesday Blitz April 19 Late 2022"]
[White "Dubov, Daniil"]
[Black "Wieczorek, Oskar"]
[WhiteFideId "24126055"]
[BlackFideId "1133950"]
[WhiteElo "2791"]
[BlackElo "2319"]
[Result "1-0"]
[Round "04"]
[TimeControl "180+1"]
[Date "2022.04.19"]
[WhiteClock "0:01:05"]
[BlackClock "0:00:04"]

1. e4 {[%clk 0:02:59]}  c5 {[%clk 0:02:59]} 2. Nf3 {[%clk 0:02:58]}  d6 {[%clk 0:02:59]} 3. Nc3 {[%clk 0:02:57]}  Nc6 {[%clk 0:02:58]} 4. d4 {[%clk 0:02:47]}  cxd4 {[%clk 0:02:59]} 5. Nxd4 {[%clk 0:02:48]}  Nf6 {[%clk 0:02:59]} 6. Bg5 {[%clk 0:02:31]}  Bd7 {[%clk 0:02:59]} 7. Qd2 {[%clk 0:02:06]}  Rc8 {[%clk 0:02:57]} 8. Nxc6 {[%clk 0:02:01]}  Bxc6 {[%clk 0:02:56]} 9. f3 {[%clk 0:02:01]}  a6 {[%clk 0:02:40]} 10. O-O-O {[%clk 0:02:00]}  e6 {[%clk 0:02:41]} 11. Kb1 {[%clk 0:02:00]}  b5 {[%clk 0:02:41]} 12. Ne2 {[%clk 0:01:59]}  h6 {[%clk 0:02:38]} 13. Be3 {[%clk 0:01:59]}  Be7 {[%clk 0:02:36]} 14. Nd4 {[%clk 0:01:57]}  Bb7 {[%clk 0:02:37]} 15. g4 {[%clk 0:01:56]}  Nd7 {[%clk 0:02:31]} 16. h4 {[%clk 0:01:56]}  Ne5 {[%clk 0:02:31]} 17. Qg2 {[%clk 0:01:50]}  d5 {[%clk 0:02:19]} 18. f4 {[%clk 0:01:47]}  Nc4 {[%clk 0:01:59]} 19. Bxc4 {[%clk 0:01:46]}  bxc4 {[%clk 0:01:58]} 20. g5 {[%clk 0:01:42]}  hxg5 {[%clk 0:01:35]} 21. hxg5 {[%clk 0:01:42]}  Rxh1 {[%clk 0:01:28]} 22. Qxh1 {[%clk 0:01:42]}  g6 {[%clk 0:01:15]} 23. f5 {[%clk 0:01:34]}  e5 {[%clk 0:01:12]} 24. fxg6 {[%clk 0:01:31]}  exd4 {[%clk 0:01:07]} 25. gxf7+ {[%clk 0:01:29]}  Kxf7 {[%clk 0:00:56]} 26. Qh5+ {[%clk 0:01:26]}  Ke6 {[%clk 0:00:49]} 27. Bf4 {[%clk 0:01:25]}  dxe4 {[%clk 0:00:40]} 28. Qg4+ {[%clk 0:01:19]}  Kd5 {[%clk 0:00:35]} 29. Qf5+ {[%clk 0:01:19]}  Kc6 {[%clk 0:00:35]} 30. Qxe4+ {[%clk 0:01:17]}  Kb6 {[%clk 0:00:32]} 31. Qf5 {[%clk 0:01:17]}  Ka7 {[%clk 0:00:24]} 32. g6 {[%clk 0:01:16]}  Qd5 {[%clk 0:00:23]} 33. Be5 {[%clk 0:01:15]}  Bc5 {[%clk 0:00:15]} 34. g7 {[%clk 0:01:13]}  Qe4 {[%clk 0:00:14]} 35. Qxc8 {[%clk 0:01:07]}  Bxc8 {[%clk 0:00:12]} 36. g8=Q {[%clk 0:01:08]}  Bf5 {[%clk 0:00:04]} 37. Qb8# {[%clk 0:01:05]} 1-0


[Site "https://www.chess.com"]

[Event "Titled Tuesday Blitz April 19 Late 2022"]
[White "Fernandez Hernandez, Gerardo"]
[Black "Senthilkumar, Pranav"]
[WhiteFideId "2207400"]
[BlackFideId "2083477"]
[WhiteElo "2148"]
[BlackElo "2473"]
[Result "1/2-1/2"]
[Round "04"]
[TimeControl "180+1"]
[Date "2022.04.19"]
[WhiteClock "0:00:09"]
[BlackClock "0:00:20"]

1. e4 {[%clk 0:03:00]}  c5 {[%clk 0:01:11]} 2. d3 {[%clk 0:02:59]}  Nc6 {[%clk 0:01:10]} 3. g3 {[%clk 0:03:00]}  g6 {[%clk 0:01:10]} 4. Bg2 {[%clk 0:03:00]}  Bg7 {[%clk 0:01:11]} 5. f4 {[%clk 0:03:01]}  e6 {[%clk 0:01:11]} 6. Nf3 {[%clk 0:03:01]}  Nge7 {[%clk 0:01:12]} 7. O-O {[%clk 0:03:01]}  b6 {[%clk 0:01:12]} 8. c3 {[%clk 0:03:01]}  O-O {[%clk 0:01:13]} 9. Be3 {[%clk 0:03:01]}  d5 {[%clk 0:01:14]} 10. e5 {[%clk 0:03:00]}  Ba6 {[%clk 0:01:13]} 11. Re1 {[%clk 0:02:57]}  d4 {[%clk 0:01:13]} 12. cxd4 {[%clk 0:02:55]}  cxd4 {[%clk 0:01:14]} 13. Bf2 {[%clk 0:02:49]}  h6 {[%clk 0:01:14]} 14. Qe2 {[%clk 0:02:07]}  h5 {[%clk 0:01:09]} 15. Nbd2 {[%clk 0:01:59]}  Nf5 {[%clk 0:01:08]} 16. Nc4 {[%clk 0:01:51]}  Nb4 {[%clk 0:01:03]} 17. a3 {[%clk 0:01:41]}  Nd5 {[%clk 0:01:00]} 18. Nxd4 {[%clk 0:01:39]}  Nxd4 {[%clk 0:01:00]} 19. Bxd4 {[%clk 0:01:38]}  Nxf4 {[%clk 0:01:00]} 20. gxf4 {[%clk 0:01:35]}  Qxd4+ {[%clk 0:00:59]} 21. Qe3 {[%clk 0:01:35]}  Qxe3+ {[%clk 0:00:58]} 22. Rxe3 {[%clk 0:01:33]}  Rad8 {[%clk 0:00:56]} 23. Nd6 {[%clk 0:01:32]}  Bh6 {[%clk 0:00:53]} 24. Rf3 {[%clk 0:01:19]}  f6 {[%clk 0:00:42]} 25. d4 {[%clk 0:01:13]}  fxe5 {[%clk 0:00:42]} 26. fxe5 {[%clk 0:01:13]}  Rxf3 {[%clk 0:00:41]} 27. Bxf3 {[%clk 0:01:14]}  Be3+ {[%clk 0:00:42]} 28. Kg2 {[%clk 0:01:06]}  Bxd4 {[%clk 0:00:43]} 29. Re1 {[%clk 0:00:41]}  Bxb2 {[%clk 0:00:39]} 30. Nb7 {[%clk 0:00:29]}  Bxb7 {[%clk 0:00:38]} 31. Bxb7 {[%clk 0:00:28]}  Rd2+ {[%clk 0:00:39]} 32. Kh3 {[%clk 0:00:20]}  Bxa3 {[%clk 0:00:38]} 33. Bc8 {[%clk 0:00:19]}  Kf7 {[%clk 0:00:38]} 34. Rf1+ {[%clk 0:00:19]}  Ke7 {[%clk 0:00:38]} 35. Rf6 {[%clk 0:00:19]}  Rd8 {[%clk 0:00:35]} 36. Bxe6 {[%clk 0:00:17]}  Bb2 {[%clk 0:00:34]} 37. Rxg6 {[%clk 0:00:15]}  Bxe5 {[%clk 0:00:34]} 38. Bc4 {[%clk 0:00:08]}  Rd2 {[%clk 0:00:31]} 39. Re6+ {[%clk 0:00:07]}  Kd7 {[%clk 0:00:29]} 40. Rxe5 {[%clk 0:00:08]}  a5 {[%clk 0:00:25]} 41. Bb5+ {[%clk 0:00:06]}  Kd6 {[%clk 0:00:24]} 42. Rxh5 {[%clk 0:00:06]}  Rb2 {[%clk 0:00:22]} 43. Kg4 {[%clk 0:00:05]}  a4 {[%clk 0:00:21]} 44. Bxa4 {[%clk 0:00:02]}  Rb4+ {[%clk 0:00:22]} 45. Kf5 {[%clk 0:00:02]}  Rxa4 {[%clk 0:00:22]} 46. Rh6+ {[%clk 0:00:02]}  Kc5 {[%clk 0:00:23]} 47. h4 {[%clk 0:00:02]}  b5 {[%clk 0:00:22]} 48. h5 {[%clk 0:00:02]}  b4 {[%clk 0:00:23]} 49. Rh8 {[%clk 0:00:03]}  Ra1 {[%clk 0:00:21]} 50. h6 {[%clk 0:00:02]}  Rf1+ {[%clk 0:00:21]} 51. Kg6 {[%clk 0:00:02]}  Rg1+ {[%clk 0:00:21]} 52. Kf6 {[%clk 0:00:02]}  Rh1 {[%clk 0:00:21]} 53. Kg7 {[%clk 0:00:02]}  Kc4 {[%clk 0:00:21]} 54. h7 {[%clk 0:00:02]}  Rg1+ {[%clk 0:00:21]} 55. Kf7 {[%clk 0:00:01]}  Rf1+ {[%clk 0:00:21]} 56. Kg7 {[%clk 0:00:01]}  Rg1+ {[%clk 0:00:21]} 57. Kf7 {[%clk 0:00:02]}  Rh1 {[%clk 0:00:21]} 58. Rc8+ {[%clk 0:00:03]}  Kb3 {[%clk 0:00:20]} 59. Kg7 {[%clk 0:00:04]}  Rg1+ {[%clk 0:00:20]} 60. Kf7 {[%clk 0:00:04]}  Rf1+ {[%clk 0:00:20]} 61. Kg7 {[%clk 0:00:05]}  Rg1+ {[%clk 0:00:21]} 62. Kf7 {[%clk 0:00:06]}  Rh1 {[%clk 0:00:21]} 63. Kg7 {[%clk 0:00:06]}  Ka2 {[%clk 0:00:20]} 64. h8=Q {[%clk 0:00:07]}  Rxh8 {[%clk 0:00:19]} 65. Kxh8 {[%clk 0:00:07]}  b3 {[%clk 0:00:20]} 66. Rb8 {[%clk 0:00:08]}  b2 {[%clk 0:00:20]} 67. Rxb2+ {[%clk 0:00:09]}  Kxb2 {[%clk 0:00:20]} 1/2-1/2


[Site "https://www.chess.com"]

[Event "Titled Tuesday Blitz April 19 Late 2022"]
[White "Fernandez Siles, Luis"]
[Black "Ibarra Jerez, Jose Carlos"]
[WhiteFideId "2209420"]
[BlackFideId "2226332"]
[WhiteElo "2212"]
[BlackElo "2626"]
[Result "0-1"]
[Round "04"]
[TimeControl "180+1"]
[Date "2022.04.19"]
[WhiteClock "0:01:00"]
[BlackClock "0:01:28"]

1. e4 {[%clk 0:03:00]}  c5 {[%clk 0:02:59]} 2. Nf3 {[%clk 0:03:01]}  Nc6 {[%clk 0:03:00]} 3. c3 {[%clk 0:02:59]}  Nf6 {[%clk 0:02:59]} 4. e5 {[%clk 0:02:58]}  Nd5 {[%clk 0:03:00]} 5. d4 {[%clk 0:02:57]}  cxd4 {[%clk 0:03:01]} 6. cxd4 {[%clk 0:02:58]}  d6 {[%clk 0:03:01]} 7. Bc4 {[%clk 0:02:53]}  dxe5 {[%clk 0:03:01]} 8. Bxd5 {[%clk 0:02:53]}  Qxd5 {[%clk 0:02:59]} 9. Nc3 {[%clk 0:02:53]}  Qd6 {[%clk 0:02:56]} 10. d5 {[%clk 0:02:52]}  Nd4 {[%clk 0:02:56]} 11. Nxd4 {[%clk 0:02:52]}  exd4 {[%clk 0:02:57]} 12. Qxd4 {[%clk 0:02:53]}  e5 {[%clk 0:02:57]} 13. Qe4 {[%clk 0:02:53]}  f5 {[%clk 0:02:51]} 14. Qe2 {[%clk 0:02:53]}  Be7 {[%clk 0:02:49]} 15. Nb5 {[%clk 0:02:50]}  Qb8 {[%clk 0:02:40]} 16. Bf4 {[%clk 0:02:45]}  Bf6 {[%clk 0:02:08]} 17. Qh5+ {[%clk 0:01:34]}  g6 {[%clk 0:02:03]} 18. Qh6 {[%clk 0:01:34]}  Bd7 {[%clk 0:01:54]} 19. Bg5 {[%clk 0:01:11]}  Bxg5 {[%clk 0:01:48]} 20. Qg7 {[%clk 0:01:11]}  Rf8 {[%clk 0:01:38]} 21. Rc1 {[%clk 0:01:00]}  Bxc1 {[%clk 0:01:28]} 0-1


[Site "https://www.chess.com"]

[Event "Titled Tuesday Blitz April 19 Late 2022"]
[White "Fonseca Manrique, Enrique"]
[Black "Tristan, Leonardo"]
[WhiteFideId "5114330"]
[BlackFideId "113816"]
[WhiteElo "2564"]
[BlackElo "2404"]
[Result "1/2-1/2"]
[Round "04"]
[TimeControl "180+1"]
[Date "2022.04.19"]
[WhiteClock "0:00:08"]
[BlackClock "0:00:17"]

1. e4 {[%clk 0:03:00]}  d5 {[%clk 0:03:00]} 2. exd5 {[%clk 0:03:00]}  Qxd5 {[%clk 0:03:01]} 3. Nc3 {[%clk 0:03:01]}  Qa5 {[%clk 0:03:01]} 4. d4 {[%clk 0:03:01]}  Nf6 {[%clk 0:03:01]} 5. Bd2 {[%clk 0:03:02]}  Bg4 {[%clk 0:03:01]} 6. f3 {[%clk 0:03:01]}  Bd7 {[%clk 0:03:01]} 7. Bd3 {[%clk 0:02:52]}  e6 {[%clk 0:03:00]} 8. Nge2 {[%clk 0:02:51]}  Be7 {[%clk 0:02:59]} 9. O-O {[%clk 0:02:51]}  O-O {[%clk 0:02:59]} 10. Qe1 {[%clk 0:02:48]}  c5 {[%clk 0:02:59]} 11. Ne4 {[%clk 0:02:40]}  Qb6 {[%clk 0:02:58]} 12. dxc5 {[%clk 0:02:39]}  Bxc5+ {[%clk 0:02:59]} 13. Nxc5 {[%clk 0:02:39]}  Qxc5+ {[%clk 0:02:59]} 14. Kh1 {[%clk 0:02:39]}  Bb5 {[%clk 0:02:59]} 15. Bb4 {[%clk 0:02:38]}  Qb6 {[%clk 0:02:53]} 16. Bxb5 {[%clk 0:02:34]}  Qxb5 {[%clk 0:02:52]} 17. Bxf8 {[%clk 0:02:34]}  Kxf8 {[%clk 0:02:53]} 18. a4 {[%clk 0:02:14]}  Qe5 {[%clk 0:02:42]} 19. Qb4+ {[%clk 0:02:10]}  Ke8 {[%clk 0:02:36]} 20. Qxb7 {[%clk 0:02:08]}  Qd5 {[%clk 0:02:36]} 21. Qc8+ {[%clk 0:01:59]}  Ke7 {[%clk 0:02:37]} 22. Rfd1 {[%clk 0:01:49]}  Nbd7 {[%clk 0:02:37]} 23. Qc3 {[%clk 0:01:42]}  Qb7 {[%clk 0:02:35]} 24. Nd4 {[%clk 0:01:40]}  Kf8 {[%clk 0:02:32]} 25. Nb5 {[%clk 0:01:40]}  Kg8 {[%clk 0:02:29]} 26. Rd2 {[%clk 0:01:32]}  h5 {[%clk 0:02:28]} 27. Rad1 {[%clk 0:01:31]}  a6 {[%clk 0:02:29]} 28. Nd6 {[%clk 0:01:31]}  Qa7 {[%clk 0:02:24]} 29. Ne4 {[%clk 0:01:29]}  Nd5 {[%clk 0:02:23]} 30. Qc6 {[%clk 0:01:22]}  Ne5 {[%clk 0:02:21]} 31. Qc5 {[%clk 0:01:20]}  Qxc5 {[%clk 0:02:11]} 32. Nxc5 {[%clk 0:01:20]}  Nc4 {[%clk 0:02:12]} 33. Rd4 {[%clk 0:01:10]}  Nce3 {[%clk 0:01:51]} 34. Rc1 {[%clk 0:01:07]}  a5 {[%clk 0:01:43]} 35. Nb3 {[%clk 0:00:56]}  Nf5 {[%clk 0:01:36]} 36. Rd3 {[%clk 0:00:52]}  h4 {[%clk 0:01:36]} 37. Kg1 {[%clk 0:00:51]}  Nf4 {[%clk 0:01:36]} 38. Rd7 {[%clk 0:00:48]}  Ne2+ {[%clk 0:01:35]} 39. Kf2 {[%clk 0:00:48]}  Nxc1 {[%clk 0:01:35]} 40. Nxc1 {[%clk 0:00:48]}  Rb8 {[%clk 0:01:35]} 41. Nd3 {[%clk 0:00:48]}  Rc8 {[%clk 0:01:33]} 42. c3 {[%clk 0:00:48]}  Rc4 {[%clk 0:01:33]} 43. Ra7 {[%clk 0:00:44]}  Rxa4 {[%clk 0:01:32]} 44. g4 {[%clk 0:00:35]}  hxg3+ {[%clk 0:01:32]} 45. hxg3 {[%clk 0:00:36]}  Ra2 {[%clk 0:01:31]} 46. g4 {[%clk 0:00:36]}  Nd6 {[%clk 0:01:31]} 47. Ke3 {[%clk 0:00:36]}  Nc4+ {[%clk 0:01:30]} 48. Kf4 {[%clk 0:00:36]}  f6 {[%clk 0:01:20]} 49. g5 {[%clk 0:00:34]}  fxg5+ {[%clk 0:00:55]} 50. Kxg5 {[%clk 0:00:34]}  Kh7 {[%clk 0:00:56]} 51. Nf4 {[%clk 0:00:29]}  Rxb2 {[%clk 0:00:54]} 52. Nxe6 {[%clk 0:00:28]}  Rb5+ {[%clk 0:00:54]} 53. Kf4 {[%clk 0:00:26]}  Nb6 {[%clk 0:00:48]} 54. Rxg7+ {[%clk 0:00:25]}  Kh6 {[%clk 0:00:49]} 55. Ra7 {[%clk 0:00:24]}  Nd5+ {[%clk 0:00:49]} 56. Ke5 {[%clk 0:00:23]}  Nxc3+ {[%clk 0:00:47]} 57. Kf6 {[%clk 0:00:24]}  Nd5+ {[%clk 0:00:45]} 58. Kf7 {[%clk 0:00:15]}  Kh5 {[%clk 0:00:31]} 59. Nd4 {[%clk 0:00:10]}  Rb4 {[%clk 0:00:25]} 60. Rxa5 {[%clk 0:00:07]}  Rxd4 {[%clk 0:00:23]} 61. Ke6 {[%clk 0:00:07]}  Rf4 {[%clk 0:00:16]} 62. Rxd5+ {[%clk 0:00:07]}  Kh4 {[%clk 0:00:17]} 63. Rf5 {[%clk 0:00:07]}  Kg3 {[%clk 0:00:16]} 64. Rxf4 {[%clk 0:00:07]}  Kxf4 {[%clk 0:00:17]} 65. Kd5 {[%clk 0:00:08]}  Kxf3 {[%clk 0:00:17]} 1/2-1/2


[Site "https://www.chess.com"]

[Event "Titled Tuesday Blitz April 19 Late 2022"]
[White "Grigorov, Grigor"]
[Black "Sarana, Alexey"]
[WhiteFideId "2907313"]
[BlackFideId "24133795"]
[WhiteElo "2510"]
[BlackElo "2666"]
[Result "0-1"]
[Round "04"]
[TimeControl "180+1"]
[Date "2022.04.19"]
[WhiteClock "0:00:50"]
[BlackClock "0:01:09"]

1. d4 {[%clk 0:03:00]}  Nf6 {[%clk 0:02:58]} 2. Nf3 {[%clk 0:03:00]}  d5 {[%clk 0:02:57]} 3. c4 {[%clk 0:02:59]}  e6 {[%clk 0:02:58]} 4. g3 {[%clk 0:02:59]}  Bb4+ {[%clk 0:02:58]} 5. Bd2 {[%clk 0:02:59]}  Be7 {[%clk 0:02:58]} 6. Bg2 {[%clk 0:03:00]}  c6 {[%clk 0:02:59]} 7. O-O {[%clk 0:03:00]}  Nbd7 {[%clk 0:03:00]} 8. Qc2 {[%clk 0:03:00]}  b6 {[%clk 0:03:01]} 9. b3 {[%clk 0:02:58]}  O-O {[%clk 0:02:59]} 10. Rd1 {[%clk 0:02:57]}  Ba6 {[%clk 0:02:57]} 11. Bc1 {[%clk 0:02:51]}  Rc8 {[%clk 0:02:54]} 12. Bb2 {[%clk 0:02:50]}  c5 {[%clk 0:02:43]} 13. Nc3 {[%clk 0:02:50]}  dxc4 {[%clk 0:02:39]} 14. d5 {[%clk 0:02:50]}  exd5 {[%clk 0:02:32]} 15. Nxd5 {[%clk 0:02:50]}  Nxd5 {[%clk 0:02:02]} 16. Rxd5 {[%clk 0:02:51]}  Qe8 {[%clk 0:02:02]} 17. Ng5 {[%clk 0:02:09]}  Bxg5 {[%clk 0:01:58]} 18. Rxg5 {[%clk 0:02:10]}  f6 {[%clk 0:01:57]} 19. Bd5+ {[%clk 0:01:54]}  Kh8 {[%clk 0:01:56]} 20. Rg4 {[%clk 0:01:55]}  cxb3 {[%clk 0:01:35]} 21. axb3 {[%clk 0:01:46]}  Qxe2 {[%clk 0:01:34]} 22. Qxe2 {[%clk 0:01:46]}  Bxe2 {[%clk 0:01:33]} 23. Re4 {[%clk 0:01:18]}  Bf3 {[%clk 0:01:18]} 24. Re7 {[%clk 0:01:19]}  Bxd5 {[%clk 0:01:19]} 25. Rxd7 {[%clk 0:01:19]}  Rfd8 {[%clk 0:01:14]} 26. Raxa7 {[%clk 0:01:13]}  Rxd7 {[%clk 0:01:14]} 27. Rxd7 {[%clk 0:01:14]}  Bxb3 {[%clk 0:01:14]} 28. Rb7 {[%clk 0:01:12]}  Rc6 {[%clk 0:01:12]} 29. f4 {[%clk 0:00:55]}  h5 {[%clk 0:01:10]} 30. Kf2 {[%clk 0:00:54]}  Bd5 {[%clk 0:01:10]} 31. Rb8+ {[%clk 0:00:52]}  Kh7 {[%clk 0:01:10]} 32. h3 {[%clk 0:00:50]}  Be6 {[%clk 0:01:09]} 0-1


[Site "https://www.chess.com"]